[Event "Tirnavia Reti Memorial-GM 2022"]
[Site "Trnava"]
[Date "2022.08.13"]
[Round "4.6"]
[White "Papp, Levente"]
[Black "Konyves, Almos"]
[Result "1/2-1/2"]
[ECO "D37"]
[WhiteElo "2394"]
[BlackElo "2229"]
[Annotator "TA"]
[PlyCount "94"]
[EventDate "2022.08.10"]
[EventType "tourn"]
[EventCountry "SVK"]
[SourceTitle "playchess.com"]
[Source "ChessBase"]
[SourceQuality "1"]
[TimeControl "40/5400+30:1800+30"]

{[%evp 20,94,55,27,57,51,57,62,50,41,59,49,47,46,52,44,85,87,85,81,83,79,87,68,65,50,140,94,104,0,152,80,145,145,231,215,304,65,60,64,65,45,45,47,47,45,46,8,8,8,8,8,8,8,8,8,8,8,8,8,8,8,8,8,8,8,8,8,8,8,8,8,8,8,8,8,8]} 1. d4 {[%emt 0:00:03]} Nf6 {[%emt 0:03:05]} 2. c4 {[%emt 0:00:15]} e6 {[%emt 0:00:05]} 3. Nf3 {[%emt 0:00:06]} d5 {[%emt 0:00:14]} 4. Nc3 {[%emt 0:00:06]} Be7 {[%emt 0:00:32]} 5. Bf4 {[%emt 0:00:16]} O-O {[%emt 0:00:36]} 6. a3 {[%emt 0:00:10]} Nbd7 {[%emt 0:02:51]} 7. Nb5 {[%emt 0:00:21]} Ne8 {[%emt 0:01:58]} 8. e3 {[%emt 0:00:07]} c6 {[%emt 0:03:48]} 9. Nc3 {[%emt 0:00:12]} Nef6 {[%emt 0:00:08]} 10. Qc2 {[%emt 0:00:22]} Re8 {[%emt 0:06:07]} 11. h3 {[%emt 0:01:56]} dxc4 {[%emt 0:01:21] D37: Queen's Gambit Declined: 5 Bf4.} 12. Bxc4 {[%emt 0:00:36]} b5 {[%emt 0:00:02]} 13. Bd3 {[%emt 0:04:07][%cal Oc3b5]} Bb7 {[%emt 0:05:55] White is slightly better.} 14. O-O {[%emt 0:04:13]} a6 {[%emt 0:04:55]} 15. b4 {[%emt 0:05:27] Inhibits c5.} a5 {[%emt 0:02:19]} 16. Rab1 {[%emt 0:01:16] [#]} Nf8 $146 {[%emt 0:05:34]} ({Predecessor:} 16... h6 17. e4 axb4 18. axb4 Ra3 19. Bc1 Ra6 20. Be3 Nb6 21. Rfc1 Qa8 22. Ne5 Rd8 23. f4 Nfd7 24. Nxd7 Rxd7 {½-½ (29) Hansen,L (2545)-Lyrberg,P (2415) Copenhagen 1994}) 17. Rfc1 {[%emt 0:12:00]} Ng6 {[%emt 0:06:36]} 18. Bg5 {[%emt 0:02:44]} axb4 {[%emt 0:08:18]} 19. axb4 {[%emt 0:00:06]} Ra3 {[%emt 0:00:04]} 20. Qb2 {[%emt 0:07:52]} Qa8 {[%emt 0:02:46]} 21. Bxg6 {[%emt 0:12:08]} hxg6 {[%emt 0:01:15]} 22. Ne5 {[%emt 0:01:27]} c5 {[%emt 0:13:56]} (22... Qa6 $14) 23. bxc5 {[%emt 0:10:40]} ({Don't play} 23. Nxb5 $6 Ra2 24. Qb3 Bd5 $11) (23. dxc5 $142 {Threatens to win with c6.} Bxg2 24. c6 (24. Nxb5 Ra2 $14) 24... Bxh3 25. Nxb5) 23... Bxg2 $16 {[%emt 0:00:31]} 24. Qxb5 {[%emt 0:21:37]} ({White should try} 24. c6 $16 b4 25. Kxg2 Rxc3 26. Rxc3 bxc3 27. Qb7 (27. Qxc3 Ne4 $15)) 24... Ra5 $2 {[%emt 0:12:44] [#]} (24... Ne4 $1 $11 25. Na4 Rxa4 26. Bxe7 Bxh3) 25. Qe2 {[%emt 0:03:08] Active counter play!} (25. Qb2 $142 $1) 25... Bxc5 {[%emt 0:13:28]} 26. dxc5 {[%emt 0:05:52] Really sharp!} Rxc5 {[%emt 0:00:03]} (26... Bxh3 $16 27. e4 Rxc5) 27. f4 {[%emt 0:01:09]} Bxh3 {[%emt 0:03:22]} (27... Be4 {is a better defense.}) 28. Qf3 $2 {[%emt 0:01:16]} (28. Bxf6 $18 gxf6 29. Nd7) 28... Qxf3 $14 {[%emt 0:00:36]} 29. Nxf3 {[%emt 0:00:00] Pair of Knights!} Bf5 {[%emt 0:00:41]} 30. Ra1 {[%emt 0:02:09]} Rec8 {[%emt 0:00:20]} 31. Bxf6 {[%emt 0:02:03]} gxf6 {[%emt 0:00:04]} 32. Ne2 {[%emt 0:00:05]} Rxc1+ {[%emt 0:00:03]} 33. Rxc1 {[%emt 0:01:35]} Rxc1+ {[%emt 0:00:07] The position is equal.} 34. Nxc1 {[%emt 0:00:01]} Bg4 {[%emt 0:00:38]} 35. Kf2 {[%emt 0:00:31]} Kg7 {[%emt 0:00:30]} 36. Kg3 {[%emt 0:00:58]} Bxf3 {[%emt 0:01:01]} 37. Kxf3 $11 {[%emt 0:00:01][%mdl 4096] Endgame KN-KP} f5 {[%emt 0:00:06]} 38. Nd3 {[%emt 0:00:52]} f6 {[%emt 0:00:04]} 39. Kg3 {[%emt 0:00:36]} g5 {[%emt 0:00:12]} 40. Kf3 {[%emt 0:01:15]} Kf7 {[%emt 0:01:22]} 41. Ke2 {[%emt 0:04:53]} Ke7 {[%emt 0:01:59]} 42. Kd2 {[%emt 0:12:10]} Kd6 {[%emt 0:00:53]} 43. fxg5 {[%emt 0:02:40]} fxg5 {[%emt 0:00:04]} 44. Nf2 {[%emt 0:00:27]} Ke5 {[%emt 0:01:07]} 45. Ke2 {[%emt 0:00:32]} Kf6 {[%emt 0:00:21]} 46. Kf3 {[%emt 0:00:43]} e5 {[%emt 0:00:11]} 47. e4 {[%emt 0:00:19]} fxe4+ {[%emt 0:00:04] Weighted Error Value: White=0.21 (precise) /Black=0.20 (precise)} 1/2-1/2

[Event "Tirnavia Reti Memorial-GM 2022"]
[Site "Trnava"]
[Date "2022.08.13"]
[Round "4.7"]
[White "Skreko, Igor"]
[Black "Leszko, Bence"]
[Result "1/2-1/2"]
[ECO "D32"]
[WhiteElo "2193"]
[BlackElo "2241"]
[Annotator "TA"]
[PlyCount "129"]
[EventDate "2022.08.10"]
[EventType "tourn"]
[EventCountry "SVK"]
[SourceTitle "playchess.com"]
[Source "ChessBase"]
[SourceQuality "1"]
[TimeControl "40/5400+30:1800+30"]

{[%evp 12,129,46,54,42,56,64,31,29,31,43,12,20,6,71,68,85,0,0,0,0,-13,-12,-16,0,0,22,30,70,0,77,88,65,59,97,97,99,92,100,99,103,96,106,98,120,119,123,117,145,141,136,136,134,134,134,53,53,53,53,53,53,52,52,52,52,52,52,52,58,0,0,0,53,51,67,6,6,6,6,0,0,0,0,0,0,0,18,18,18,18,18,18,19,18,20,0,0,0,0,0,0,-20,-14,-34,0,0,0,-8,0,0,0,0,0,0,0,0,0,0,0,0]} 1. d4 {[%emt 0:00:03]} d5 {[%emt 0:02:20]} 2. c4 {[%emt 0:00:06]} e6 {[%emt 0:00:05]} 3. Nc3 {[%emt 0:00:18]} c5 {[%emt 0:00:04]} 4. cxd5 {[%emt 0:00:22]} cxd4 {[%emt 0:00:06]} 5. Qa4+ {[%emt 0:00:31]} Bd7 {[%emt 0:00:07]} 6. Qxd4 {[%emt 0:00:09]} exd5 {[%emt 0:00:10]} 7. Qxd5 {[%emt 0:00:05]} Nf6 {[%emt 0:00:05] D32: Tarrasch Defence: Sidelines and lines without g3.} 8. Qd1 {[%emt 0:00:23]} Bc5 {[%emt 0:00:07]} 9. e3 {[%emt 0:00:56]} O-O $1 {[%emt 0:00:10][%mdl 4] White is slightly better. outshines the older 9...Nc6.} 10. Nf3 {[%emt 0:00:51]} Qe7 {[%emt 0:00:08] [#]} 11. Bc4 $146 {[%emt 0:02:32]} ({Predecessor:} 11. Be2 Rd8 12. O-O Nc6 13. a3 Rac8 14. Qc2 Bd6 15. Rd1 Ne5 16. Nd4 Neg4 17. g3 Rc5 18. e4 Rh5 19. Bxg4 Nxg4 20. Nd5 Qe8 21. h4 {½-½ (30) Mamedyarov,S (2759)-Boruchovsky,A (2551) Chennai 2022}) 11... Rd8 {[%emt 0:17:22][%cal Od7h3]} 12. Qe2 {[%emt 0:01:32]} Bc6 {[%emt 0:08:05]} (12... Nc6 $11) 13. O-O $16 {[%emt 0:04:07]} Nbd7 {[%emt 0:00:34]} 14. Bb3 {[%emt 0:05:39]} (14. Nd4 $16) 14... Ne5 $11 {[%emt 0:02:01]} 15. Nxe5 {[%emt 0:03:26]} Qxe5 {[%emt 0:00:07]} 16. Ba4 {[%emt 0:14:55]} Bxa4 {[%emt 0:07:08]} 17. Nxa4 {[%emt 0:00:15]} Bd6 {[%emt 0:00:15][%csl Gd6][%cal Re5h2] [#]} 18. g3 {[%emt 0:02:24]} Rac8 {[%emt 0:03:54]} 19. Bd2 {[%emt 0:05:49]} Ne4 {[%emt 0:03:02] Threatens to win with ...Rc2.} 20. Rac1 {[%emt 0:02:29] Inhibits Rc2.} (20. Rfd1 $14) 20... Qe6 {[%emt 0:09:28] [#]} (20... Qd5 $11 21. Rxc8 Rxc8) 21. Rxc8 $1 $16 {[%emt 0:03:52]} Rxc8 {[%emt 0:00:13]} 22. Nc3 $1 {[%emt 0:04:32]} Nxd2 {[%emt 0:16:59]} 23. Qxd2 {[%emt 0:00:21]} Bb4 {[%emt 0:00:09]} 24. Rc1 {[%emt 0:09:28]} g6 {[%emt 0:03:47]} 25. a3 {[%emt 0:01:07]} Ba5 {[%emt 0:01:06]} 26. b4 {[%emt 0:08:57]} Bb6 {[%emt 0:01:21]} 27. Na4 {[%emt 0:02:30]} Rd8 {[%emt 0:00:31]} 28. Qc3 {[%emt 0:00:54]} h5 {[%emt 0:01:02][%cal Bh7h5,Bh5h4,Bh4h3][%mdl 32]} 29. Nxb6 {[%emt 0:05:15]} axb6 {[%emt 0:01:06][%mdl 4096] Endgame KQR-KQR} 30. Qc7 {[%emt 0:02:06]} Rd7 {[%emt 0:00:07]} 31. Qc8+ {[%emt 0:00:40]} Kg7 {[%emt 0:00:53][%cal Od7d1]} 32. Qc3+ {[%emt 0:00:59]} Kh7 {[%emt 0:01:19][%cal Oh5h4]} 33. Qb2 {[%emt 0:01:49]} (33. h4 $16) 33... h4 $1 $14 {[%emt 0:02:00]} 34. Qe2 {[%emt 0:05:24]} h3 $1 {[%emt 0:06:10]} 35. Qf3 {[%emt 0:01:37]} Kg7 {[%emt 0:00:30]} 36. g4 $1 {[%emt 0:01:28]} Rd5 $1 {[%emt 0:00:07]} 37. Qxh3 {[%emt 0:06:54]} Rg5 $1 {[%emt 0:00:01]} 38. Qf3 {[%emt 0:00:30] And now h3 would win.} Rxg4+ {[%emt 0:00:06]} 39. Kh1 {[%emt 0:00:12]} Rg5 {[%emt 0:01:38]} 40. Qf4 {[%emt 0:03:49]} ({Avoid the trap} 40. Qxb7 $2 Rd5 41. Kg1 Qe4 $19) (40. e4 $5 {[%cal Rc1c7]}) 40... Rg4 {[%emt 0:01:06]} 41. Qf3 {[%emt 0:01:57]} Rg5 $1 {[%emt 0:00:06]} 42. e4 $1 {[%emt 0:04:13]} ({Don't go for} 42. Qxb7 $2 Rd5 43. Kg1 Qe4 $19) 42... Re5 {[%emt 0:02:46]} 43. Qc3 {[%emt 0:01:34]} (43. Re1 $1 $14) 43... Kh7 $1 $11 {[%emt 0:00:48]} 44. f3 {[%emt 0:00:46]} Rh5 {[%emt 0:05:46]} 45. Qc7 {[%emt 0:02:20]} Qf6 {[%emt 0:00:21]} 46. Qg3 {[%emt 0:02:50]} Qb2 {[%emt 0:00:48]} 47. Qf4 {[%emt 0:02:13]} Kg7 {[%emt 0:01:30]} 48. Rc7 {[%emt 0:01:50][%csl LRb7,LRf7]} Qb3 {[%emt 0:00:11]} 49. Rd7 {[%emt 0:02:01]} b5 {[%emt 0:07:10]} 50. Rd6 {[%emt 0:01:19] Black must now prevent Qf6+.} Qc3 {[%emt 0:00:48] Inhibits Qf6+.} 51. Kg2 {[%emt 0:01:28] Black should prevent h4.} Qb2+ {[%emt 0:07:02]} 52. Qd2 {[%emt 0:01:33]} Qe5 {[%emt 0:00:05]} 53. Kg1 {[%emt 0:02:14]} Qa1+ {[%emt 0:04:05]} 54. Qd1 {[%emt 0:00:35]} Qa2 {[%emt 0:00:39]} 55. Rd2 {[%emt 0:02:03]} Qxa3 {[%emt 0:00:21]} 56. Rd7 {[%emt 0:03:57]} Qe3+ {[%emt 0:04:24]} 57. Kh1 {[%emt 0:00:42]} Kg8 {[%emt 0:00:46] ...Qf2 is the strong threat.} 58. Rd8+ {[%emt 0:01:00] The position is equal.} Kh7 {[%emt 0:00:06] Hoping for ...Qf2.} 59. Rd7 {[%emt 0:00:23]} Qf2 {[%emt 0:05:01][%csl Gh5][%cal Rf2h2]} 60. Rxf7+ {[%emt 0:03:09]} Kg8 {[%emt 0:00:30][%csl Gh5][%cal Rf2h2]} 61. Qd8+ {[%emt 0:02:17]} Kxf7 {[%emt 0:00:00][%csl Gh5][%cal Rf2h2]} 62. Qd7+ {[%emt 0:00:39]} Kf6 {[%emt 0:00:34][%csl Gh5][%cal Rf2h2]} 63. Qd6+ {[%emt 0:00:10]} Kg7 {[%emt 0:00:09][%cal Rf2f1]} 64. Qc7+ $1 {[%emt 0:00:21]} Kf6 {[%emt 0:01:08][%cal Rf2f1]} 65. Qd6+ {[%emt 0:00:04] Weighted Error Value: White=0.10 (very precise) /Black=0.09 (flawless)} 1/2-1/2

[Event "Tirnavia Reti Memorial-GM 2022"]
[Site "Trnava"]
[Date "2022.08.13"]
[Round "4.8"]
[White "Petran, Peter"]
[Black "Svana, Peter"]
[Result "1-0"]
[ECO "A08"]
[WhiteElo "2234"]
[BlackElo "2280"]
[Annotator "RC"]
[PlyCount "89"]
[EventDate "2022.08.10"]
[EventType "tourn"]
[EventCountry "SVK"]
[SourceTitle "playchess.com"]
[Source "ChessBase"]
[SourceQuality "1"]
[TimeControl "40/5400+30:1800+30"]

1. g3 {[%emt 0:00:08]} d5 {[%emt 0:00:07]} 2. Nf3 {[%emt 0:00:26]} Nf6 {[%emt 0:01:03]} 3. Bg2 {[%emt 0:00:06]} g6 {[%emt 0:00:05]} 4. d3 {[%emt 0:00:19]} Bg7 {[%emt 0:00:15]} 5. Nbd2 {[%emt 0:00:07]} O-O {[%emt 0:00:07]} 6. e4 {[%emt 0:00:12]} c5 {[%emt 0:00:18]} 7. O-O {[%emt 0:02:22]} Nc6 {[%emt 0:00:15]} 8. c3 {[%emt 0:02:11]} e5 {[%emt 0:03:18]} 9. Re1 {[%emt 0:00:42]} h6 {[%emt 0:04:16]} 10. Qb3 {[%emt 0:05:52]} d4 {[%emt 0:05:28]} 11. cxd4 {[%emt 0:00:23]} cxd4 {[%emt 0:00:54]} 12. Nc4 {[%emt 0:01:10]} Qe7 {[%emt 0:02:09]} 13. Bd2 {[%emt 0:04:53]} Be6 {[%emt 0:01:22]} 14. a4 {[%emt 0:00:18]} Rfc8 {[%emt 0:02:32]} 15. Rec1 {[%emt 0:00:45]} Nd7 {[%emt 0:00:30]} 16. Qa3 {[%emt 0:09:47]} Qxa3 {[%emt 0:01:27]} 17. Rxa3 {[%emt 0:01:00]} Bf8 {[%emt 0:00:22]} 18. Raa1 {[%emt 0:00:32]} Nc5 {[%emt 0:00:56]} 19. Ra3 {[%emt 0:05:13]} f6 {[%emt 0:08:13]} 20. Ne1 {[%emt 0:00:17]} Nd7 {[%emt 0:08:14]} 21. Raa1 {[%emt 0:00:23]} Nb4 {[%emt 0:01:36]} 22. Bf1 {[%emt 0:05:25]} Na6 {[%emt 0:08:12]} 23. b3 {[%emt 0:05:31]} Nac5 {[%emt 0:02:48]} 24. Rcb1 {[%emt 0:00:28]} b6 {[%emt 0:01:30]} 25. f4 {[%emt 0:05:06]} f5 {[%emt 0:02:21]} 26. exf5 {[%emt 0:00:53]} gxf5 {[%emt 0:02:27]} 27. fxe5 {[%emt 0:00:28]} Bxc4 {[%emt 0:00:57]} 28. bxc4 {[%emt 0:00:41]} Nxe5 {[%emt 0:00:33]} 29. Bf4 {[%emt 0:08:23]} Bg7 {[%emt 0:06:39]} 30. a5 {[%emt 0:03:50]} Rab8 {[%emt 0:00:15]} 31. Rb5 {[%emt 0:05:02]} Re8 {[%emt 0:09:31]} 32. Bh3 {[%emt 0:10:57]} Rf8 {[%emt 0:02:58]} 33. axb6 {[%emt 0:05:08]} axb6 {[%emt 0:00:13]} 34. Rab1 {[%emt 0:07:54]} Rbe8 {[%emt 0:01:14]} 35. Rxb6 {[%emt 0:02:41]} Ncxd3 {[%emt 0:00:58]} 36. Nxd3 {[%emt 0:00:08]} Nxd3 {[%emt 0:00:18]} 37. Bd6 {[%emt 0:00:13]} Rf6 {[%emt 0:01:00]} 38. c5 {[%emt 0:00:28]} f4 {[%emt 0:02:04]} 39. Rb8 {[%emt 0:03:47]} Rxb8 {[%emt 0:03:43]} 40. Rxb8+ {[%emt 0:00:06]} Kf7 {[%emt 0:06:02]} 41. Bf1 {[%emt 0:32:24]} Nxc5 {[%emt 0:35:05]} 42. Bxc5 {[%emt 0:00:32]} fxg3 {[%emt 0:02:50]} 43. Rb7+ {[%emt 0:01:56]} Ke6 {[%emt 0:01:33]} 44. hxg3 {[%emt 0:02:08]} Rg6 {[%emt 0:01:34]} 45. Rb6+ {[%emt 0:00:33]} 1-0

[Event "Tirnavia Reti Memorial-GM 2022"]
[Site "Trnava"]
[Date "2022.08.13"]
[Round "4.10"]
[White "Straka, Jozef"]
[Black "Lanc, Alois"]
[Result "1-0"]
[ECO "D46"]
[WhiteElo "2300"]
[BlackElo "2263"]
[Annotator "RC"]
[PlyCount "69"]
[EventDate "2022.08.10"]
[EventType "tourn"]
[EventCountry "SVK"]
[SourceTitle "playchess.com"]
[Source "ChessBase"]
[SourceQuality "1"]
[TimeControl "40/5400+30:1800+30"]

1. d4 {[%emt 0:00:09]} Nf6 {[%emt 0:00:12]} 2. c4 {[%emt 0:00:05]} c6 {[%emt 0:00:12]} 3. Nc3 {[%emt 0:00:15]} d5 {[%emt 0:00:06]} 4. e3 {[%emt 0:00:31]} e6 {[%emt 0:00:41]} 5. Nf3 {[%emt 0:00:05]} Nbd7 {[%emt 0:00:11]} 6. Qc2 {[%emt 0:00:11]} Bd6 {[%emt 0:00:20]} 7. Bd3 {[%emt 0:00:31]} O-O {[%emt 0:02:37]} 8. O-O {[%emt 0:04:36]} dxc4 {[%emt 0:00:46]} 9. Bxc4 {[%emt 0:00:02]} b5 {[%emt 0:10:05]} 10. Be2 {[%emt 0:00:08]} a6 {[%emt 0:04:56]} 11. e4 {[%emt 0:10:46]} e5 {[%emt 0:00:50]} 12. Bg5 {[%emt 0:02:39]} Qe7 {[%emt 0:15:00]} 13. Rad1 {[%emt 0:15:07]} Re8 {[%emt 0:26:25]} 14. a3 {[%emt 0:07:30]} Bb7 {[%emt 0:01:36]} 15. dxe5 {[%emt 0:03:20]} Bxe5 {[%emt 0:01:15]} 16. Nxe5 {[%emt 0:05:10]} Nxe5 {[%emt 0:05:10]} 17. Kh1 {[%emt 0:20:43]} Ng6 {[%emt 0:03:30]} 18. f4 {[%emt 0:07:37]} h6 {[%emt 0:00:37]} 19. Bxf6 {[%emt 0:00:03]} Qxf6 {[%emt 0:00:10]} 20. e5 {[%emt 0:00:23]} Qe7 {[%emt 0:04:44]} 21. Bd3 {[%emt 0:02:36]} Nh4 {[%emt 0:02:07]} 22. Be4 {[%emt 0:00:48]} c5 {[%emt 0:02:00]} 23. Nd5 {[%emt 0:00:40]} Bxd5 {[%emt 0:03:23]} 24. Rxd5 {[%emt 0:02:59]} Rac8 {[%emt 0:01:27]} 25. f5 {[%emt 0:09:57]} g6 {[%emt 0:03:05]} 26. fxg6 {[%emt 0:01:01]} fxg6 {[%emt 0:00:03]} 27. Bxg6 {[%emt 0:02:04]} Rf8 {[%emt 0:00:01]} 28. Rfd1 {[%emt 0:01:19]} Qg5 {[%emt 0:02:05]} 29. Bh7+ {[%emt 0:00:44]} Kh8 {[%emt 0:00:27]} 30. Be4 {[%emt 0:00:54]} Rf4 {[%emt 0:01:04]} 31. g3 {[%emt 0:01:28]} Rg4 {[%emt 0:03:21]} 32. gxh4 {[%emt 0:00:19]} Qxh4 {[%emt 0:00:01]} 33. Bf5 {[%emt 0:01:31]} Rcg8 {[%emt 0:00:46]} 34. Bxg4 {[%emt 0:00:34]} Qxg4 {[%emt 0:00:01]} 35. Rf1 {[%emt 0:00:37]} 1-0

[Event "Tirnavia Reti Memorial-GM 2022"]
[Site "Trnava"]
[Date "2022.08.14"]
[Round "5.1"]
[White "Jablonicky, Martin"]
[Black "Malinovsky, Karel"]
[Result "1/2-1/2"]
[ECO "D37"]
[WhiteElo "2343"]
[BlackElo "2463"]
[Annotator "RC"]
[PlyCount "64"]
[EventDate "2022.08.10"]
[EventType "tourn"]
[EventCountry "SVK"]
[SourceTitle "playchess.com"]
[Source "ChessBase"]
[SourceQuality "1"]
[TimeControl "40/5400+30:1800+30"]

1. d4 {[%emt 0:00:04]} d5 {[%emt 0:00:07]} 2. c4 {[%emt 0:00:07]} e6 {[%emt 0:00:06]} 3. Nc3 {[%emt 0:00:03]} Be7 {[%emt 0:00:15]} 4. Nf3 {[%emt 0:00:06]} Nf6 {[%emt 0:00:11]} 5. Bf4 {[%emt 0:00:04]} O-O {[%emt 0:00:20]} 6. e3 {[%emt 0:00:04]} b6 {[%emt 0:00:18]} 7. Be2 {[%emt 0:00:10]} Bb7 {[%emt 0:02:33]} 8. O-O {[%emt 0:00:08]} c5 {[%emt 0:03:31]} 9. cxd5 {[%emt 0:01:06]} Nxd5 {[%emt 0:01:12]} 10. Nxd5 {[%emt 0:00:06]} Qxd5 {[%emt 0:04:34]} 11. dxc5 {[%emt 0:00:46]} Bxc5 {[%emt 0:01:33]} 12. a3 {[%emt 0:00:52]} Nd7 {[%emt 0:04:40]} 13. b4 {[%emt 0:05:01]} Be7 {[%emt 0:00:27]} 14. Rc1 {[%emt 0:00:17]} Nf6 {[%emt 0:14:27]} 15. Qa4 {[%emt 0:11:56]} a5 {[%emt 0:09:27]} 16. b5 {[%emt 0:01:45]} Rac8 {[%emt 0:12:06]} 17. Bc7 {[%emt 0:05:17]} Qa2 {[%emt 0:06:03]} 18. Qd1 {[%emt 0:08:57]} Nd5 {[%emt 0:10:01]} 19. Bc4 {[%emt 0:00:41]} Qxa3 {[%emt 0:01:04]} 20. Bxd5 {[%emt 0:01:07]} Bxd5 {[%emt 0:00:10]} 21. Bxb6 {[%emt 0:00:07]} Bb3 {[%emt 0:10:34]} 22. Qd2 {[%emt 0:07:31]} Rxc1 {[%emt 0:04:55]} 23. Qxc1 {[%emt 0:00:46]} Qxc1 {[%emt 0:01:14]} 24. Rxc1 {[%emt 0:00:06]} a4 {[%emt 0:00:32]} 25. Nd4 {[%emt 0:05:54]} Bd5 {[%emt 0:02:43]} 26. Nc6 {[%emt 0:06:50]} Bxc6 {[%emt 0:00:58]} 27. bxc6 {[%emt 0:00:13]} Rc8 {[%emt 0:00:28]} 28. Kf1 {[%emt 0:00:21]} a3 {[%emt 0:03:54]} 29. Bc5 {[%emt 0:00:39]} Kf8 {[%emt 0:03:39]} 30. Rc3 {[%emt 0:00:37]} Bxc5 {[%emt 0:01:02]} 31. Rxc5 {[%emt 0:00:06]} Ke7 {[%emt 0:00:17]} 32. Ra5 {[%emt 0:00:05]} Rxc6 {[%emt 0:00:10]} 1/2-1/2